Workbook

Sheet Principal
E2: Fornecedor | F2: Produto | G2: Preço de Custo | H2: Preço Minimo | I2: Markup PM | J2: Preço Sugestivo | K2: Markup PS | P2: Fornecedor | R2: Produto | W2: Preço de Custo | X2: Preço Minimo | Y2: Markup PM | Z2: Preço Sugestivo | AA2: Markup PS
E3: =IFERROR(VLOOKUP(F3,Tabela!$B$1:$C$69,2,FALSE),"") -> VITAFOR | F3: =IFERROR(INDEX(Tabela!$B$2:$B$69, _xlfn.AGGREGATE(15, 6, (ROW(Tabela!$B$2:$B$69)-ROW(Tabela!$B$2)+1) / ((Tabela!$D$2:$D$69=Principal!$B$7) * (Tabela!$E$2:$E$69="Ativo")), ROW(A1))), "") -> BIO OMEGA 3 (18/12) 120 CAPS | G3: =IFERROR(INDEX(Tabela!$F:$F,MATCH(F3,Tabela!$B:$B,0)),"") -> 59.18 | H3: =IFERROR(INDEX(Tabela!$G:$G,MATCH(F3,Tabela!$B:$B,0)),"") -> 98.9 | I3: =IFERROR(INDEX(Tabela!$H:$H,MATCH($F3,Tabela!$B:$B,0)),"") -> 1.671172693 | J3: =IFERROR(INDEX(Tabela!$I:$I,MATCH($F3,Tabela!$B:$B,0)),"") -> 113.7 | K3: =IFERROR(INDEX(Tabela!$J:$J,MATCH($F3,Tabela!$B:$B,0)),"") -> 1.921257181 | P3: =IFERROR(VLOOKUP(R3,Tabela!$B$1:$C$69,2,FALSE),"") -> NATURELLE | R3: =IFERROR(INDEX(Tabela!$B$2:$B$69, _xlfn.AGGREGATE(15, 6, (ROW(Tabela!$B$2:$B$69)-ROW(Tabela!$B$2)+1) / ((Tabela!$D$2:$D$69=$M$8) * (Tabela!$E$2:$E$69="Ativo")), ROW(L1))), "") -> NO RED FPS 30 - 100G UNID | W3: =IFERROR(INDEX(Tabela!$F:$F,MATCH(R3,Tabela!$B:$B,0)),"") -> 49.74 | X3: =IFERROR(INDEX(Tabela!$G:$G,MATCH(R3,Tabela!$B:$B,0)),"") -> 89.5 | Y3: =IFERROR(INDEX(Tabela!$H:$H,MATCH(R3,Tabela!$B:$B,0)),"") -> 1.799356655 | Z3: =IFERROR(INDEX(Tabela!$I:$I,MATCH(R3,Tabela!$B:$B,0)),"") -> 102.9 | AA3: =IFERROR(INDEX(Tabela!$J:$J,MATCH(R3,Tabela!$B:$B,0)),"") -> 2.068757539
E4: =IFERROR(VLOOKUP(F4,Tabela!$B$1:$C$69,2,FALSE),"") -> VITAFOR | F4: =IFERROR(INDEX(Tabela!$B$2:$B$69, _xlfn.AGGREGATE(15, 6, (ROW(Tabela!$B$2:$B$69)-ROW(Tabela!$B$2)+1) / ((Tabela!$D$2:$D$69=Principal!$B$7) * (Tabela!$E$2:$E$69="Ativo")), ROW(A2))), "") -> COENZIMA Q10 100MG 60 CAPS | G4: =IFERROR(INDEX(Tabela!$F:$F,MATCH(F4,Tabela!$B:$B,0)),"") -> 86.76 | H4: =IFERROR(INDEX(Tabela!$G:$G,MATCH(F4,Tabela!$B:$B,0)),"") -> 145 | I4: =IFERROR(INDEX(Tabela!$H:$H,MATCH($F4,Tabela!$B:$B,0)),"") -> 1.671277086 | J4: =IFERROR(INDEX(Tabela!$I:$I,MATCH($F4,Tabela!$B:$B,0)),"") -> 166.8 | K4: =IFERROR(INDEX(Tabela!$J:$J,MATCH($F4,Tabela!$B:$B,0)),"") -> 1.922544952 | P4: =IFERROR(VLOOKUP(R4,Tabela!$B$1:$C$69,2,FALSE),"") -> BOTANIK KOSMETICS | R4: =IFERROR(INDEX(Tabela!$B$2:$B$69, _xlfn.AGGREGATE(15, 6, (ROW(Tabela!$B$2:$B$69)-ROW(Tabela!$B$2)+1) / ((Tabela!$D$2:$D$69=$M$8) * (Tabela!$E$2:$E$69="Ativo")), ROW(L2))), "") -> NO RED FPS 40 - 60G UNID. | W4: =IFERROR(INDEX(Tabela!$F:$F,MATCH(R4,Tabela!$B:$B,0)),"") -> 51.52 | X4: =IFERROR(INDEX(Tabela!$G:$G,MATCH(R4,Tabela!$B:$B,0)),"") -> 95.9 | Y4: =IFERROR(INDEX(Tabela!$H:$H,MATCH(R4,Tabela!$B:$B,0)),"") -> 1.861413043 | Z4: =IFERROR(INDEX(Tabela!$I:$I,MATCH(R4,Tabela!$B:$B,0)),"") -> 110.3 | AA4: =IFERROR(INDEX(Tabela!$J:$J,MATCH(R4,Tabela!$B:$B,0)),"") -> 2.140916149
E5: =IFERROR(VLOOKUP(F5,Tabela!$B$1:$C$69,2,FALSE),"") -> BASECOL MIX | F5: =IFERROR(INDEX(Tabela!$B$2:$B$69, _xlfn.AGGREGATE(15, 6, (ROW(Tabela!$B$2:$B$69)-ROW(Tabela!$B$2)+1) / ((Tabela!$D$2:$D$69=Principal!$B$7) * (Tabela!$E$2:$E$69="Ativo")), ROW(A3))), "") -> COLAG VERISOL GELATINA 30 GOMAS FR VERM. 240G | G5: =IFERROR(INDEX(Tabela!$F:$F,MATCH(F5,Tabela!$B:$B,0)),"") -> 88.91 | H5: =IFERROR(INDEX(Tabela!$G:$G,MATCH(F5,Tabela!$B:$B,0)),"") -> 142.5 | I5: =IFERROR(INDEX(Tabela!$H:$H,MATCH($F5,Tabela!$B:$B,0)),"") -> 1.602744348 | J5: =IFERROR(INDEX(Tabela!$I:$I,MATCH($F5,Tabela!$B:$B,0)),"") -> 163.9 | K5: =IFERROR(INDEX(Tabela!$J:$J,MATCH($F5,Tabela!$B:$B,0)),"") -> 1.843437184 | P5: =IFERROR(VLOOKUP(R5,Tabela!$B$1:$C$69,2,FALSE),"") -> BOTANIK KOSMETICS | R5: =IFERROR(INDEX(Tabela!$B$2:$B$69, _xlfn.AGGREGATE(15, 6, (ROW(Tabela!$B$2:$B$69)-ROW(Tabela!$B$2)+1) / ((Tabela!$D$2:$D$69=$M$8) * (Tabela!$E$2:$E$69="Ativo")), ROW(L3))), "") -> NO RED FPS 50 C/COR 60G UNID. | W5: =IFERROR(INDEX(Tabela!$F:$F,MATCH(R5,Tabela!$B:$B,0)),"") -> 61.78 | X5: =IFERROR(INDEX(Tabela!$G:$G,MATCH(R5,Tabela!$B:$B,0)),"") -> 108.5 | Y5: =IFERROR(INDEX(Tabela!$H:$H,MATCH(R5,Tabela!$B:$B,0)),"") -> 1.75623179 | Z5: =IFERROR(INDEX(Tabela!$I:$I,MATCH(R5,Tabela!$B:$B,0)),"") -> 124.8 | AA5: =IFERROR(INDEX(Tabela!$J:$J,MATCH(R5,Tabela!$B:$B,0)),"") -> 2.02007122
E6: =IFERROR(VLOOKUP(F6,Tabela!$B$1:$C$69,2,FALSE),"") -> BASECOL MIX | F6: =IFERROR(INDEX(Tabela!$B$2:$B$69, _xlfn.AGGREGATE(15, 6, (ROW(Tabela!$B$2:$B$69)-ROW(Tabela!$B$2)+1) / ((Tabela!$D$2:$D$69=Principal!$B$7) * (Tabela!$E$2:$E$69="Ativo")), ROW(A4))), "") -> COLAG VERISOL PECTINA 30 GOMAS FR VERM. 216G UN | G6: =IFERROR(INDEX(Tabela!$F:$F,MATCH(F6,Tabela!$B:$B,0)),"") -> 84.9 | H6: =IFERROR(INDEX(Tabela!$G:$G,MATCH(F6,Tabela!$B:$B,0)),"") -> 119.9 | I6: =IFERROR(INDEX(Tabela!$H:$H,MATCH($F6,Tabela!$B:$B,0)),"") -> 1.412249706 | J6: =IFERROR(INDEX(Tabela!$I:$I,MATCH($F6,Tabela!$B:$B,0)),"") -> 137.9 | K6: =IFERROR(INDEX(Tabela!$J:$J,MATCH($F6,Tabela!$B:$B,0)),"") -> 1.62426384 | P6: =IFERROR(VLOOKUP(R6,Tabela!$B$1:$C$69,2,FALSE),"") -> KILT DISTRIBUIDORA | R6: =IFERROR(INDEX(Tabela!$B$2:$B$69, _xlfn.AGGREGATE(15, 6, (ROW(Tabela!$B$2:$B$69)-ROW(Tabela!$B$2)+1) / ((Tabela!$D$2:$D$69=$M$8) * (Tabela!$E$2:$E$69="Ativo")), ROW(L4))), "") -> NO RED LOCAO AUTOBRONZEADORA 120G | W6: =IFERROR(INDEX(Tabela!$F:$F,MATCH(R6,Tabela!$B:$B,0)),"") -> 13.83 | X6: =IFERROR(INDEX(Tabela!$G:$G,MATCH(R6,Tabela!$B:$B,0)),"") -> 34.9 | Y6: =IFERROR(INDEX(Tabela!$H:$H,MATCH(R6,Tabela!$B:$B,0)),"") -> 2.523499638 | Z6: =IFERROR(INDEX(Tabela!$I:$I,MATCH(R6,Tabela!$B:$B,0)),"") -> 40.1 | AA6: =IFERROR(INDEX(Tabela!$J:$J,MATCH(R6,Tabela!$B:$B,0)),"") -> 2.899493854
B7: PURIS | E7: =IFERROR(VLOOKUP(F7,Tabela!$B$1:$C$69,2,FALSE),"") -> VITAFOR | F7: =IFERROR(INDEX(Tabela!$B$2:$B$69, _xlfn.AGGREGATE(15, 6, (ROW(Tabela!$B$2:$B$69)-ROW(Tabela!$B$2)+1) / ((Tabela!$D$2:$D$69=Principal!$B$7) * (Tabela!$E$2:$E$69="Ativo")), ROW(A5))), "") -> COLAGENO POTE NEUTRO 360G | G7: =IFERROR(INDEX(Tabela!$F:$F,MATCH(F7,Tabela!$B:$B,0)),"") -> 66.55 | H7: =IFERROR(INDEX(Tabela!$G:$G,MATCH(F7,Tabela!$B:$B,0)),"") -> 111.2 | I7: =IFERROR(INDEX(Tabela!$H:$H,MATCH($F7,Tabela!$B:$B,0)),"") -> 1.670924117 | J7: =IFERROR(INDEX(Tabela!$I:$I,MATCH($F7,Tabela!$B:$B,0)),"") -> 127.9 | K7: =IFERROR(INDEX(Tabela!$J:$J,MATCH($F7,Tabela!$B:$B,0)),"") -> 1.921863261 | P7: =IFERROR(VLOOKUP(R7,Tabela!$B$1:$C$69,2,FALSE),"") ->  | R7: =IFERROR(INDEX(Tabela!$B$2:$B$69, _xlfn.AGGREGATE(15, 6, (ROW(Tabela!$B$2:$B$69)-ROW(Tabela!$B$2)+1) / ((Tabela!$D$2:$D$69=$M$8) * (Tabela!$E$2:$E$69="Ativo")), ROW(L5))), "") ->  | W7: =IFERROR(INDEX(Tabela!$F:$F,MATCH(R7,Tabela!$B:$B,0)),"") ->  | X7: =IFERROR(INDEX(Tabela!$G:$G,MATCH(R7,Tabela!$B:$B,0)),"") ->  | Y7: =IFERROR(INDEX(Tabela!$H:$H,MATCH(R7,Tabela!$B:$B,0)),"") ->  | Z7: =IFERROR(INDEX(Tabela!$I:$I,MATCH(R7,Tabela!$B:$B,0)),"") ->  | AA7: =IFERROR(INDEX(Tabela!$J:$J,MATCH(R7,Tabela!$B:$B,0)),"") -> 
E8: =IFERROR(VLOOKUP(F8,Tabela!$B$1:$C$69,2,FALSE),"") -> VITAFOR | F8: =IFERROR(INDEX(Tabela!$B$2:$B$69, _xlfn.AGGREGATE(15, 6, (ROW(Tabela!$B$2:$B$69)-ROW(Tabela!$B$2)+1) / ((Tabela!$D$2:$D$69=Principal!$B$7) * (Tabela!$E$2:$E$69="Ativo")), ROW(A6))), "") -> COLAGENO SACHE 12G - ABACAXI | G8: =IFERROR(INDEX(Tabela!$F:$F,MATCH(F8,Tabela!$B:$B,0)),"") -> 73.31 | H8: =IFERROR(INDEX(Tabela!$G:$G,MATCH(F8,Tabela!$B:$B,0)),"") -> 124.9 | I8: =IFERROR(INDEX(Tabela!$H:$H,MATCH($F8,Tabela!$B:$B,0)),"") -> 1.703723912 | J8: =IFERROR(INDEX(Tabela!$I:$I,MATCH($F8,Tabela!$B:$B,0)),"") -> 143.6 | K8: =IFERROR(INDEX(Tabela!$J:$J,MATCH($F8,Tabela!$B:$B,0)),"") -> 1.958805074 | M8: NORED
E9: =IFERROR(VLOOKUP(F9,Tabela!$B$1:$C$69,2,FALSE),"") -> VITAFOR | F9: =IFERROR(INDEX(Tabela!$B$2:$B$69, _xlfn.AGGREGATE(15, 6, (ROW(Tabela!$B$2:$B$69)-ROW(Tabela!$B$2)+1) / ((Tabela!$D$2:$D$69=Principal!$B$7) * (Tabela!$E$2:$E$69="Ativo")), ROW(A7))), "") -> COLAGENO SACHE 12G - LARANJA COM ACEROLA | G9: =IFERROR(INDEX(Tabela!$F:$F,MATCH(F9,Tabela!$B:$B,0)),"") -> 73.31 | H9: =IFERROR(INDEX(Tabela!$G:$G,MATCH(F9,Tabela!$B:$B,0)),"") -> 124.9 | I9: =IFERROR(INDEX(Tabela!$H:$H,MATCH($F9,Tabela!$B:$B,0)),"") -> 1.703723912 | J9: =IFERROR(INDEX(Tabela!$I:$I,MATCH($F9,Tabela!$B:$B,0)),"") -> 143.6 | K9: =IFERROR(INDEX(Tabela!$J:$J,MATCH($F9,Tabela!$B:$B,0)),"") -> 1.958805074
E10: =IFERROR(VLOOKUP(F10,Tabela!$B$1:$C$69,2,FALSE),"") -> VITAFOR | F10: =IFERROR(INDEX(Tabela!$B$2:$B$69, _xlfn.AGGREGATE(15, 6, (ROW(Tabela!$B$2:$B$69)-ROW(Tabela!$B$2)+1) / ((Tabela!$D$2:$D$69=Principal!$B$7) * (Tabela!$E$2:$E$69="Ativo")), ROW(A8))), "") -> COLAGENO TIPO II 750MG 60 CAPS | G10: =IFERROR(INDEX(Tabela!$F:$F,MATCH(F10,Tabela!$B:$B,0)),"") -> 76.61 | H10: =IFERROR(INDEX(Tabela!$G:$G,MATCH(F10,Tabela!$B:$B,0)),"") -> 129.9 | I10: =IFERROR(INDEX(Tabela!$H:$H,MATCH($F10,Tabela!$B:$B,0)),"") -> 1.695601096 | J10: =IFERROR(INDEX(Tabela!$I:$I,MATCH($F10,Tabela!$B:$B,0)),"") -> 149.4 | K10: =IFERROR(INDEX(Tabela!$J:$J,MATCH($F10,Tabela!$B:$B,0)),"") -> 1.950137058
E11: =IFERROR(VLOOKUP(F11,Tabela!$B$1:$C$69,2,FALSE),"") -> BASECOL MIX | F11: =IFERROR(INDEX(Tabela!$B$2:$B$69, _xlfn.AGGREGATE(15, 6, (ROW(Tabela!$B$2:$B$69)-ROW(Tabela!$B$2)+1) / ((Tabela!$D$2:$D$69=Principal!$B$7) * (Tabela!$E$2:$E$69="Ativo")), ROW(A9))), "") -> COLAGENO VERISOL PO 210G SEM SABOR | G11: =IFERROR(INDEX(Tabela!$F:$F,MATCH(F11,Tabela!$B:$B,0)),"") -> 76.99 | H11: =IFERROR(INDEX(Tabela!$G:$G,MATCH(F11,Tabela!$B:$B,0)),"") -> 119.9 | I11: =IFERROR(INDEX(Tabela!$H:$H,MATCH($F11,Tabela!$B:$B,0)),"") -> 1.55734511 | J11: =IFERROR(INDEX(Tabela!$I:$I,MATCH($F11,Tabela!$B:$B,0)),"") -> 137.9 | K11: =IFERROR(INDEX(Tabela!$J:$J,MATCH($F11,Tabela!$B:$B,0)),"") -> 1.791141707
E12: =IFERROR(VLOOKUP(F12,Tabela!$B$1:$C$69,2,FALSE),"") -> BASECOL MIX | F12: =IFERROR(INDEX(Tabela!$B$2:$B$69, _xlfn.AGGREGATE(15, 6, (ROW(Tabela!$B$2:$B$69)-ROW(Tabela!$B$2)+1) / ((Tabela!$D$2:$D$69=Principal!$B$7) * (Tabela!$E$2:$E$69="Ativo")), ROW(A10))), "") -> CREATINA MONOHIDRATADA PECT FR VERM GOMAS 240GR | G12: =IFERROR(INDEX(Tabela!$F:$F,MATCH(F12,Tabela!$B:$B,0)),"") -> 69.9 | H12: =IFERROR(INDEX(Tabela!$G:$G,MATCH(F12,Tabela!$B:$B,0)),"") -> 119.9 | I12: =IFERROR(INDEX(Tabela!$H:$H,MATCH($F12,Tabela!$B:$B,0)),"") -> 1.715307582 | J12: =IFERROR(INDEX(Tabela!$I:$I,MATCH($F12,Tabela!$B:$B,0)),"") -> 137.9 | K12: =IFERROR(INDEX(Tabela!$J:$J,MATCH($F12,Tabela!$B:$B,0)),"") -> 1.972818312
E13: =IFERROR(VLOOKUP(F13,Tabela!$B$1:$C$69,2,FALSE),"") -> BASECOL MIX | F13: =IFERROR(INDEX(Tabela!$B$2:$B$69, _xlfn.AGGREGATE(15, 6, (ROW(Tabela!$B$2:$B$69)-ROW(Tabela!$B$2)+1) / ((Tabela!$D$2:$D$69=Principal!$B$7) * (Tabela!$E$2:$E$69="Ativo")), ROW(A11))), "") -> CREATINA MONOHIDRATADA PECT UVA GOMAS 240GR | G13: =IFERROR(INDEX(Tabela!$F:$F,MATCH(F13,Tabela!$B:$B,0)),"") -> 69.9 | H13: =IFERROR(INDEX(Tabela!$G:$G,MATCH(F13,Tabela!$B:$B,0)),"") -> 119.9 | I13: =IFERROR(INDEX(Tabela!$H:$H,MATCH($F13,Tabela!$B:$B,0)),"") -> 1.715307582 | J13: =IFERROR(INDEX(Tabela!$I:$I,MATCH($F13,Tabela!$B:$B,0)),"") -> 137.9 | K13: =IFERROR(INDEX(Tabela!$J:$J,MATCH($F13,Tabela!$B:$B,0)),"") -> 1.972818312
E14: =IFERROR(VLOOKUP(F14,Tabela!$B$1:$C$69,2,FALSE),"") -> VITAFOR | F14: =IFERROR(INDEX(Tabela!$B$2:$B$69, _xlfn.AGGREGATE(15, 6, (ROW(Tabela!$B$2:$B$69)-ROW(Tabela!$B$2)+1) / ((Tabela!$D$2:$D$69=Principal!$B$7) * (Tabela!$E$2:$E$69="Ativo")), ROW(A12))), "") -> DHA PLUS (OMEGA 3) 120 CAPS 1G | G14: =IFERROR(INDEX(Tabela!$F:$F,MATCH(F14,Tabela!$B:$B,0)),"") -> 103.51 | H14: =IFERROR(INDEX(Tabela!$G:$G,MATCH(F14,Tabela!$B:$B,0)),"") -> 173.5 | I14: =IFERROR(INDEX(Tabela!$H:$H,MATCH($F14,Tabela!$B:$B,0)),"") -> 1.676166554 | J14: =IFERROR(INDEX(Tabela!$I:$I,MATCH($F14,Tabela!$B:$B,0)),"") -> 199.5 | K14: =IFERROR(INDEX(Tabela!$J:$J,MATCH($F14,Tabela!$B:$B,0)),"") -> 1.927350014 | P14: Fornecedor | R14: Produto | W14: Preço de Custo | X14: Preço Minimo | Y14: Markup PM | Z14: Preço Sugestivo | AA14: Markup PS
E15: =IFERROR(VLOOKUP(F15,Tabela!$B$1:$C$69,2,FALSE),"") -> VITAFOR | F15: =IFERROR(INDEX(Tabela!$B$2:$B$69, _xlfn.AGGREGATE(15, 6, (ROW(Tabela!$B$2:$B$69)-ROW(Tabela!$B$2)+1) / ((Tabela!$D$2:$D$69=Principal!$B$7) * (Tabela!$E$2:$E$69="Ativo")), ROW(A13))), "") -> ENZYMAX SACHES 2G | G15: =IFERROR(INDEX(Tabela!$F:$F,MATCH(F15,Tabela!$B:$B,0)),"") -> 43.8 | H15: =IFERROR(INDEX(Tabela!$G:$G,MATCH(F15,Tabela!$B:$B,0)),"") -> 104.895 | I15: =IFERROR(INDEX(Tabela!$H:$H,MATCH($F15,Tabela!$B:$B,0)),"") -> 2.394863014 | J15: =IFERROR(INDEX(Tabela!$I:$I,MATCH($F15,Tabela!$B:$B,0)),"") -> 120.6 | K15: =IFERROR(INDEX(Tabela!$J:$J,MATCH($F15,Tabela!$B:$B,0)),"") -> 2.753424658 | P15: =IFERROR(VLOOKUP(R15,Tabela!$B$1:$C$69,2,FALSE),"") -> PASTEUR | R15: =IFERROR(INDEX(Tabela!$B$2:$B$69, _xlfn.AGGREGATE(15, 6, (ROW(Tabela!$B$2:$B$69)-ROW(Tabela!$B$2)+1) / ((Tabela!$D$2:$D$69=$M$20) * (Tabela!$E$2:$E$69="Ativo")), ROW(A1))), "") -> HIDRATANTE CORPORAL MAG 200G | W15: =IFERROR(INDEX(Tabela!$F:$F,MATCH(R15,Tabela!$B:$B,0)),"") -> 15.74 | X15: =IFERROR(INDEX(Tabela!$G:$G,MATCH(R15,Tabela!$B:$B,0)),"") -> 39.9 | Y15: =IFERROR(INDEX(Tabela!$H:$H,MATCH(R15,Tabela!$B:$B,0)),"") -> 2.534942821 | Z15: =IFERROR(INDEX(Tabela!$I:$I,MATCH(R15,Tabela!$B:$B,0)),"") -> 45.9 | AA15: =IFERROR(INDEX(Tabela!$J:$J,MATCH(R15,Tabela!$B:$B,0)),"") -> 2.91613723
E16: =IFERROR(VLOOKUP(F16,Tabela!$B$1:$C$69,2,FALSE),"") -> VITAFOR | F16: =IFERROR(INDEX(Tabela!$B$2:$B$69, _xlfn.AGGREGATE(15, 6, (ROW(Tabela!$B$2:$B$69)-ROW(Tabela!$B$2)+1) / ((Tabela!$D$2:$D$69=Principal!$B$7) * (Tabela!$E$2:$E$69="Ativo")), ROW(A14))), "") -> LACTOBACILLUS SACHES 2G | G16: =IFERROR(INDEX(Tabela!$F:$F,MATCH(F16,Tabela!$B:$B,0)),"") -> 89.53 | H16: =IFERROR(INDEX(Tabela!$G:$G,MATCH(F16,Tabela!$B:$B,0)),"") -> 143.745 | I16: =IFERROR(INDEX(Tabela!$H:$H,MATCH($F16,Tabela!$B:$B,0)),"") -> 1.605551212 | J16: =IFERROR(INDEX(Tabela!$I:$I,MATCH($F16,Tabela!$B:$B,0)),"") -> 165.3 | K16: =IFERROR(INDEX(Tabela!$J:$J,MATCH($F16,Tabela!$B:$B,0)),"") -> 1.8463085 | P16: =IFERROR(VLOOKUP(R16,Tabela!$B$1:$C$69,2,FALSE),"") -> PASTEUR | R16: =IFERROR(INDEX(Tabela!$B$2:$B$69, _xlfn.AGGREGATE(15, 6, (ROW(Tabela!$B$2:$B$69)-ROW(Tabela!$B$2)+1) / ((Tabela!$D$2:$D$69=$M$20) * (Tabela!$E$2:$E$69="Ativo")), ROW(A2))), "") -> HIDRATANTE PARA PES MAG 60G | W16: =IFERROR(INDEX(Tabela!$F:$F,MATCH(R16,Tabela!$B:$B,0)),"") -> 10.43 | X16: =IFERROR(INDEX(Tabela!$G:$G,MATCH(R16,Tabela!$B:$B,0)),"") -> 25.9 | Y16: =IFERROR(INDEX(Tabela!$H:$H,MATCH(R16,Tabela!$B:$B,0)),"") -> 2.483221477 | Z16: =IFERROR(INDEX(Tabela!$I:$I,MATCH(R16,Tabela!$B:$B,0)),"") -> 29.8 | AA16: =IFERROR(INDEX(Tabela!$J:$J,MATCH(R16,Tabela!$B:$B,0)),"") -> 2.857142857
E17: =IFERROR(VLOOKUP(F17,Tabela!$B$1:$C$69,2,FALSE),"") -> CROMOFLORAIS | F17: =IFERROR(INDEX(Tabela!$B$2:$B$69, _xlfn.AGGREGATE(15, 6, (ROW(Tabela!$B$2:$B$69)-ROW(Tabela!$B$2)+1) / ((Tabela!$D$2:$D$69=Principal!$B$7) * (Tabela!$E$2:$E$69="Ativo")), ROW(A15))), "") -> MELATONINA 0,21MG GOTA 30ML - CX C/10 UN | G17: =IFERROR(INDEX(Tabela!$F:$F,MATCH(F17,Tabela!$B:$B,0)),"") -> 16.5 | H17: =IFERROR(INDEX(Tabela!$G:$G,MATCH(F17,Tabela!$B:$B,0)),"") -> 28.9 | I17: =IFERROR(INDEX(Tabela!$H:$H,MATCH($F17,Tabela!$B:$B,0)),"") -> 1.751515152 | J17: =IFERROR(INDEX(Tabela!$I:$I,MATCH($F17,Tabela!$B:$B,0)),"") -> 33.2 | K17: =IFERROR(INDEX(Tabela!$J:$J,MATCH($F17,Tabela!$B:$B,0)),"") -> 2.012121212 | P17: =IFERROR(VLOOKUP(R17,Tabela!$B$1:$C$69,2,FALSE),"") -> PASTEUR | R17: =IFERROR(INDEX(Tabela!$B$2:$B$69, _xlfn.AGGREGATE(15, 6, (ROW(Tabela!$B$2:$B$69)-ROW(Tabela!$B$2)+1) / ((Tabela!$D$2:$D$69=$M$20) * (Tabela!$E$2:$E$69="Ativo")), ROW(A3))), "") -> MANTEIGA CORPORAL MAG 210G | W17: =IFERROR(INDEX(Tabela!$F:$F,MATCH(R17,Tabela!$B:$B,0)),"") -> 17.43 | X17: =IFERROR(INDEX(Tabela!$G:$G,MATCH(R17,Tabela!$B:$B,0)),"") -> 47.9 | Y17: =IFERROR(INDEX(Tabela!$H:$H,MATCH(R17,Tabela!$B:$B,0)),"") -> 2.748135399 | Z17: =IFERROR(INDEX(Tabela!$I:$I,MATCH(R17,Tabela!$B:$B,0)),"") -> 55.1 | AA17: =IFERROR(INDEX(Tabela!$J:$J,MATCH(R17,Tabela!$B:$B,0)),"") -> 3.161216294
E18: =IFERROR(VLOOKUP(F18,Tabela!$B$1:$C$69,2,FALSE),"") -> VITAFOR | F18: =IFERROR(INDEX(Tabela!$B$2:$B$69, _xlfn.AGGREGATE(15, 6, (ROW(Tabela!$B$2:$B$69)-ROW(Tabela!$B$2)+1) / ((Tabela!$D$2:$D$69=Principal!$B$7) * (Tabela!$E$2:$E$69="Ativo")), ROW(A16))), "") -> OMEGA 3 PLUS (33/22) 1G 120 CAPS | G18: =IFERROR(INDEX(Tabela!$F:$F,MATCH(F18,Tabela!$B:$B,0)),"") -> 82.85 | H18: =IFERROR(INDEX(Tabela!$G:$G,MATCH(F18,Tabela!$B:$B,0)),"") -> 138.69 | I18: =IFERROR(INDEX(Tabela!$H:$H,MATCH($F18,Tabela!$B:$B,0)),"") -> 1.673989137 | J18: =IFERROR(INDEX(Tabela!$I:$I,MATCH($F18,Tabela!$B:$B,0)),"") -> 159.5 | K18: =IFERROR(INDEX(Tabela!$J:$J,MATCH($F18,Tabela!$B:$B,0)),"") -> 1.925165963 | P18: =IFERROR(VLOOKUP(R18,Tabela!$B$1:$C$69,2,FALSE),"") ->  | R18: =IFERROR(INDEX(Tabela!$B$2:$B$69, _xlfn.AGGREGATE(15, 6, (ROW(Tabela!$B$2:$B$69)-ROW(Tabela!$B$2)+1) / ((Tabela!$D$2:$D$69=$M$20) * (Tabela!$E$2:$E$69="Ativo")), ROW(A4))), "") ->  | W18: =IFERROR(INDEX(Tabela!$F:$F,MATCH(R18,Tabela!$B:$B,0)),"") ->  | X18: =IFERROR(INDEX(Tabela!$G:$G,MATCH(R18,Tabela!$B:$B,0)),"") ->  | Y18: =IFERROR(INDEX(Tabela!$H:$H,MATCH(R18,Tabela!$B:$B,0)),"") ->  | Z18: =IFERROR(INDEX(Tabela!$I:$I,MATCH(R18,Tabela!$B:$B,0)),"") ->  | AA18: =IFERROR(INDEX(Tabela!$J:$J,MATCH(R18,Tabela!$B:$B,0)),"") -> 
E19: =IFERROR(VLOOKUP(F19,Tabela!$B$1:$C$69,2,FALSE),"") -> VITAFOR | F19: =IFERROR(INDEX(Tabela!$B$2:$B$69, _xlfn.AGGREGATE(15, 6, (ROW(Tabela!$B$2:$B$69)-ROW(Tabela!$B$2)+1) / ((Tabela!$D$2:$D$69=Principal!$B$7) * (Tabela!$E$2:$E$69="Ativo")), ROW(A17))), "") -> OMEGAMEMO 1000MG 60 CAPS | G19: =IFERROR(INDEX(Tabela!$F:$F,MATCH(F19,Tabela!$B:$B,0)),"") -> 79.75 | H19: =IFERROR(INDEX(Tabela!$G:$G,MATCH(F19,Tabela!$B:$B,0)),"") -> 133.5 | I19: =IFERROR(INDEX(Tabela!$H:$H,MATCH($F19,Tabela!$B:$B,0)),"") -> 1.673981191 | J19: =IFERROR(INDEX(Tabela!$I:$I,MATCH($F19,Tabela!$B:$B,0)),"") -> 153.5 | K19: =IFERROR(INDEX(Tabela!$J:$J,MATCH($F19,Tabela!$B:$B,0)),"") -> 1.92476489 | P19: =IFERROR(VLOOKUP(R19,Tabela!$B$1:$C$69,2,FALSE),"") ->  | R19: =IFERROR(INDEX(Tabela!$B$2:$B$69, _xlfn.AGGREGATE(15, 6, (ROW(Tabela!$B$2:$B$69)-ROW(Tabela!$B$2)+1) / ((Tabela!$D$2:$D$69=$M$20) * (Tabela!$E$2:$E$69="Ativo")), ROW(A5))), "") ->  | W19: =IFERROR(INDEX(Tabela!$F:$F,MATCH(R19,Tabela!$B:$B,0)),"") ->  | X19: =IFERROR(INDEX(Tabela!$G:$G,MATCH(R19,Tabela!$B:$B,0)),"") ->  | Y19: =IFERROR(INDEX(Tabela!$H:$H,MATCH(R19,Tabela!$B:$B,0)),"") ->  | Z19: =IFERROR(INDEX(Tabela!$I:$I,MATCH(R19,Tabela!$B:$B,0)),"") ->  | AA19: =IFERROR(INDEX(Tabela!$J:$J,MATCH(R19,Tabela!$B:$B,0)),"") -> 
E20: =IFERROR(VLOOKUP(F20,Tabela!$B$1:$C$69,2,FALSE),"") -> VITAFOR | F20: =IFERROR(INDEX(Tabela!$B$2:$B$69, _xlfn.AGGREGATE(15, 6, (ROW(Tabela!$B$2:$B$69)-ROW(Tabela!$B$2)+1) / ((Tabela!$D$2:$D$69=Principal!$B$7) * (Tabela!$E$2:$E$69="Ativo")), ROW(A18))), "") -> RESVERATROL 60 CAPS | G20: =IFERROR(INDEX(Tabela!$F:$F,MATCH(F20,Tabela!$B:$B,0)),"") -> 96.96 | H20: =IFERROR(INDEX(Tabela!$G:$G,MATCH(F20,Tabela!$B:$B,0)),"") -> 155.9 | I20: =IFERROR(INDEX(Tabela!$H:$H,MATCH($F20,Tabela!$B:$B,0)),"") -> 1.607879538 | J20: =IFERROR(INDEX(Tabela!$I:$I,MATCH($F20,Tabela!$B:$B,0)),"") -> 179.3 | K20: =IFERROR(INDEX(Tabela!$J:$J,MATCH($F20,Tabela!$B:$B,0)),"") -> 1.849216172 | M20: MAG
E21: =IFERROR(VLOOKUP(F21,Tabela!$B$1:$C$69,2,FALSE),"") -> VITAFOR | F21: =IFERROR(INDEX(Tabela!$B$2:$B$69, _xlfn.AGGREGATE(15, 6, (ROW(Tabela!$B$2:$B$69)-ROW(Tabela!$B$2)+1) / ((Tabela!$D$2:$D$69=Principal!$B$7) * (Tabela!$E$2:$E$69="Ativo")), ROW(A19))), "") -> VITAMINA C 1G 60 CAPS | G21: =IFERROR(INDEX(Tabela!$F:$F,MATCH(F21,Tabela!$B:$B,0)),"") -> 39.98 | H21: =IFERROR(INDEX(Tabela!$G:$G,MATCH(F21,Tabela!$B:$B,0)),"") -> 66.9 | I21: =IFERROR(INDEX(Tabela!$H:$H,MATCH($F21,Tabela!$B:$B,0)),"") -> 1.673336668 | J21: =IFERROR(INDEX(Tabela!$I:$I,MATCH($F21,Tabela!$B:$B,0)),"") -> 76.9 | K21: =IFERROR(INDEX(Tabela!$J:$J,MATCH($F21,Tabela!$B:$B,0)),"") -> 1.923461731
E22: =IFERROR(VLOOKUP(F22,Tabela!$B$1:$C$69,2,FALSE),"") -> VITAFOR | F22: =IFERROR(INDEX(Tabela!$B$2:$B$69, _xlfn.AGGREGATE(15, 6, (ROW(Tabela!$B$2:$B$69)-ROW(Tabela!$B$2)+1) / ((Tabela!$D$2:$D$69=Principal!$B$7) * (Tabela!$E$2:$E$69="Ativo")), ROW(A20))), "") -> VITAMINA D3 (2.000UI) 500MG 60 CAPS | G22: =IFERROR(INDEX(Tabela!$F:$F,MATCH(F22,Tabela!$B:$B,0)),"") -> 43.12 | H22: =IFERROR(INDEX(Tabela!$G:$G,MATCH(F22,Tabela!$B:$B,0)),"") -> 72.19 | I22: =IFERROR(INDEX(Tabela!$H:$H,MATCH($F22,Tabela!$B:$B,0)),"") -> 1.674165121 | J22: =IFERROR(INDEX(Tabela!$I:$I,MATCH($F22,Tabela!$B:$B,0)),"") -> 83 | K22: =IFERROR(INDEX(Tabela!$J:$J,MATCH($F22,Tabela!$B:$B,0)),"") -> 1.924860853
E23: =IFERROR(VLOOKUP(F23,Tabela!$B$1:$C$69,2,FALSE),"") ->  | F23: =IFERROR(INDEX(Tabela!$B$2:$B$69, _xlfn.AGGREGATE(15, 6, (ROW(Tabela!$B$2:$B$69)-ROW(Tabela!$B$2)+1) / ((Tabela!$D$2:$D$69=Principal!$B$7) * (Tabela!$E$2:$E$69="Ativo")), ROW(A21))), "") ->  | G23: =IFERROR(INDEX(Tabela!$F:$F,MATCH(F23,Tabela!$B:$B,0)),"") ->  | H23: =IFERROR(INDEX(Tabela!$G:$G,MATCH(F23,Tabela!$B:$B,0)),"") ->  | I23: =IFERROR(INDEX(Tabela!$H:$H,MATCH($F23,Tabela!$B:$B,0)),"") ->  | J23: =IFERROR(INDEX(Tabela!$I:$I,MATCH($F23,Tabela!$B:$B,0)),"") ->  | K23: =IFERROR(INDEX(Tabela!$J:$J,MATCH($F23,Tabela!$B:$B,0)),"") -> 
E24: =IFERROR(VLOOKUP(F24,Tabela!$B$1:$C$69,2,FALSE),"") ->  | F24: =IFERROR(INDEX(Tabela!$B$2:$B$69, _xlfn.AGGREGATE(15, 6, (ROW(Tabela!$B$2:$B$69)-ROW(Tabela!$B$2)+1) / ((Tabela!$D$2:$D$69=Principal!$B$7) * (Tabela!$E$2:$E$69="Ativo")), ROW(#REF!))), "") ->  | G24: =IFERROR(INDEX(Tabela!$F:$F,MATCH(F24,Tabela!$B:$B,0)),"") ->  | H24: =IFERROR(INDEX(Tabela!$G:$G,MATCH(F24,Tabela!$B:$B,0)),"") ->  | I24: =IFERROR(INDEX(Tabela!$H:$H,MATCH($F24,Tabela!$B:$B,0)),"") ->  | J24: =IFERROR(INDEX(Tabela!$I:$I,MATCH($F24,Tabela!$B:$B,0)),"") ->  | K24: =IFERROR(INDEX(Tabela!$J:$J,MATCH($F24,Tabela!$B:$B,0)),"") ->  | P24: Fornecedor | R24: Produto | W24: Preço de Custo | X24: Preço Minimo | Y24: Markup PM | Z24: Preço Sugestivo | AA24: Markup PS
E25: =IFERROR(VLOOKUP(F25,Tabela!$B$1:$C$69,2,FALSE),"") ->  | F25: =IFERROR(INDEX(Tabela!$B$2:$B$69, _xlfn.AGGREGATE(15, 6, (ROW(Tabela!$B$2:$B$69)-ROW(Tabela!$B$2)+1) / ((Tabela!$D$2:$D$69=Principal!$B$7) * (Tabela!$E$2:$E$69="Ativo")), ROW(#REF!))), "") ->  | G25: =IFERROR(INDEX(Tabela!$F:$F,MATCH(F25,Tabela!$B:$B,0)),"") ->  | H25: =IFERROR(INDEX(Tabela!$G:$G,MATCH(F25,Tabela!$B:$B,0)),"") ->  | I25: =IFERROR(INDEX(Tabela!$H:$H,MATCH($F25,Tabela!$B:$B,0)),"") ->  | J25: =IFERROR(INDEX(Tabela!$I:$I,MATCH($F25,Tabela!$B:$B,0)),"") ->  | K25: =IFERROR(INDEX(Tabela!$J:$J,MATCH($F25,Tabela!$B:$B,0)),"") ->  | P25: =IFERROR(VLOOKUP(R25,Tabela!$B$1:$C$69,2,FALSE),"") -> ATIVA BRASIL | R25: =IFERROR(INDEX(Tabela!$B$2:$B$69, _xlfn.AGGREGATE(15, 6, (ROW(Tabela!$B$2:$B$69)-ROW(Tabela!$B$2)+1) / ((Tabela!$D$2:$D$69=$M$28) * (Tabela!$E$2:$E$69="Ativo")), ROW(A1))), "") -> NANO NAILS REPARADOR UNHAS 7ML UN | W25: =IFERROR(INDEX(Tabela!$F:$F,MATCH(R25,Tabela!$B:$B,0)),"") -> 21.5 | X25: =IFERROR(INDEX(Tabela!$G:$G,MATCH(R25,Tabela!$B:$B,0)),"") -> 46.65 | Y25: =IFERROR(INDEX(Tabela!$H:$H,MATCH(R25,Tabela!$B:$B,0)),"") -> 2.169767442 | Z25: =IFERROR(INDEX(Tabela!$I:$I,MATCH(R25,Tabela!$B:$B,0)),"") -> 53.6 | AA25: =IFERROR(INDEX(Tabela!$J:$J,MATCH(R25,Tabela!$B:$B,0)),"") -> 2.493023256
E26: =IFERROR(VLOOKUP(F26,Tabela!$B$1:$C$69,2,FALSE),"") ->  | F26: =IFERROR(INDEX(Tabela!$B$2:$B$69, _xlfn.AGGREGATE(15, 6, (ROW(Tabela!$B$2:$B$69)-ROW(Tabela!$B$2)+1) / ((Tabela!$D$2:$D$69=Principal!$B$7) * (Tabela!$E$2:$E$69="Ativo")), ROW(A24))), "") ->  | G26: =IFERROR(INDEX(Tabela!$F:$F,MATCH(F26,Tabela!$B:$B,0)),"") ->  | H26: =IFERROR(INDEX(Tabela!$G:$G,MATCH(F26,Tabela!$B:$B,0)),"") ->  | I26: =IFERROR(INDEX(Tabela!$H:$H,MATCH($F26,Tabela!$B:$B,0)),"") ->  | J26: =IFERROR(INDEX(Tabela!$I:$I,MATCH($F26,Tabela!$B:$B,0)),"") ->  | K26: =IFERROR(INDEX(Tabela!$J:$J,MATCH($F26,Tabela!$B:$B,0)),"") ->  | P26: =IFERROR(VLOOKUP(R26,Tabela!$B$1:$C$69,2,FALSE),"") ->  | R26: =IFERROR(INDEX(Tabela!$B$2:$B$69, _xlfn.AGGREGATE(15, 6, (ROW(Tabela!$B$2:$B$69)-ROW(Tabela!$B$2)+1) / ((Tabela!$D$2:$D$69=$M$28) * (Tabela!$E$2:$E$69="Ativo")), ROW(A2))), "") ->  | W26: =IFERROR(INDEX(Tabela!$F:$F,MATCH(R26,Tabela!$B:$B,0)),"") ->  | X26: =IFERROR(INDEX(Tabela!$G:$G,MATCH(R26,Tabela!$B:$B,0)),"") ->  | Y26: =IFERROR(INDEX(Tabela!$H:$H,MATCH(R26,Tabela!$B:$B,0)),"") ->  | Z26: =IFERROR(INDEX(Tabela!$I:$I,MATCH(R26,Tabela!$B:$B,0)),"") ->  | AA26: =IFERROR(INDEX(Tabela!$J:$J,MATCH(R26,Tabela!$B:$B,0)),"") -> 
P27: =IFERROR(VLOOKUP(R27,Tabela!$B$1:$C$69,2,FALSE),"") ->  | R27: =IFERROR(INDEX(Tabela!$B$2:$B$69, _xlfn.AGGREGATE(15, 6, (ROW(Tabela!$B$2:$B$69)-ROW(Tabela!$B$2)+1) / ((Tabela!$D$2:$D$69=$M$28) * (Tabela!$E$2:$E$69="Ativo")), ROW(A3))), "") ->  | W27: =IFERROR(INDEX(Tabela!$F:$F,MATCH(R27,Tabela!$B:$B,0)),"") ->  | X27: =IFERROR(INDEX(Tabela!$G:$G,MATCH(R27,Tabela!$B:$B,0)),"") ->  | Y27: =IFERROR(INDEX(Tabela!$H:$H,MATCH(R27,Tabela!$B:$B,0)),"") ->  | Z27: =IFERROR(INDEX(Tabela!$I:$I,MATCH(R27,Tabela!$B:$B,0)),"") ->  | AA27: =IFERROR(INDEX(Tabela!$J:$J,MATCH(R27,Tabela!$B:$B,0)),"") -> 
M28: MAESTRINE

Sheet Regras e Promoções
R14: Proibido!
D16: Selecione o Produto | R16: Anúnciar descontos nos sites de e-commerce de produtos que estão com prazo de 6 meses ou menos, sem destacar a validade e o nome da sua farmácia.
R17: A identificação se faz necessária para que possamos fazer uma rastreabilidade do lote caso apresente algum problema.
R18: Os preços minimos devem ser respeitados seja na venda de balcão ou na venda por internet, caso infrinja a regra, será passivel de notificação e até exclusão do quadro associativo.
S21: Regra para Produtos com validade curta
D22: Preço de custo Promocional: | J22: 0 | M22: /UN | AG22: 6 meses | AM22: 3 meses
C24: Autorizado de forma automatica a vender em um prazo de até 30 dias após o encerramento da Promoção da Oser. | AG24: Descontos de até 30% | AM24: Descontos de até 50%
R25: Marketplace
S28: Os produtos Marca própria podem ser vendidos em marketplace desde que sejam respeitados as seguintes regras:
D30: =INDEX(#REF!,MATCH('Regras e Promoções'!$D$17,#REF!,0)) ->  | F30: Preço Mínimo: | J30: =IFERROR($J$22*$D$30,"R$ 0,00") -> R$ 0,00 | M30: /UN
AG31: Preço de Venda: | AM31: =IFERROR(INDEX(#REF!,MATCH($D$17,#REF!,0)),"Selecione") -> Selecione
S32: 1º - O preço mínimo a ser aplicado na revanda deve respeitar o preço informado na Tabela;
D33: =INDEX(#REF!+0.2,MATCH('Regras e Promoções'!$D$17,#REF!,0)) ->  | F33: Preço Sugerido: | J33: =IFERROR($J$22*$D$33,"R$ 0,00") -> R$ 0,00 | M33: /UN
AG35: Preço de Venda 6 meses: | AM35: =IFERROR($AM$31*0.7,"R$ 0,00") -> R$ 0,00
S37: 2º - Só pode ser vendido em marketplace que identifique quem está vendendo, no caso a farmácia, e não a OLIST por exemplo. Isso se faz necessário, pois se o produto apresentar qualquer problema, só poderemos rastrear o lote identificando a farmácia.
C38: Essa condição é valida para promoções feitas pela Oser onde você tem autorização para fazer uma condição especial. Por exemplo, a promoção da Oser contempla na compra de 1un a bonificação de outra unidade, nesse caso você deve incluir no campo "Preço de custo Promocional" o valor da unidade com 50% de desconto, assim você terá os valores permitidos. Esses valores podem ser usados até o final do mês subsequente ao mês da promoção.
AG39: Preço de Venda 3 meses: | AM39: =IFERROR($AM$31*0.5,"R$ 0,00") -> R$ 0,00
Z43: Informação Registrada na ATA da Assembleia de novembro de 2020.
S45: Marketplace

Sheet Impostos (hidden)
A1: Estado de Destino | B1: ICMS Interestadual | C1: Alíquota Interna | D1: DIFAL | E1: FCP
A2: AC | B2: 0.07 | C2: 0.17 | D2: 0.1 | E2: 0.02
A3: AL | B3: 0.07 | C3: 0.18 | D3: 0.11 | E3: 0.02 | J3: Origem: | K3: RS
A4: AP | B4: 0.07 | C4: 0.18 | D4: 0.11 | E4: 0.02 | J4: Destino: | K4: SP
A5: AM | B5: 0.07 | C5: 0.18 | D5: 0.11 | E5: 0.02
A6: BA | B6: 0.07 | C6: 0.18 | D6: 0.11 | E6: 0.02 | J6: ICMS Interestadual: | K6: =INDEX($B$2:$B$28,MATCH($K$3,$A$2:$A$28,0)) -> 0.12
A7: CE | B7: 0.07 | C7: 0.18 | D7: 0.11 | E7: 0.02 | J7: Alíquota Interna Destino: | K7: =INDEX($C$2:$C$28,MATCH($K$4,$A$2:$A$28,0)) -> 0.18
A8: DF | B8: 0.07 | C8: 0.18 | D8: 0.11 | E8: 0.02 | J8: FCP Destino: | K8: =INDEX(E2:E28,MATCH($K$4,$A$2:$A$28,0)) -> 0.02
A9: ES | B9: 0.12 | C9: 0.17 | D9: 0.05 | E9: 0.02 | J9: DIFAL: | K9: =K7-K6 -> 0.06
A10: GO | B10: 0.07 | C10: 0.17 | D10: 0.1 | E10: 0.02 | J10: FCP Origem: | K10: =INDEX(E2:E28,MATCH($K$3,$A$2:$A$28,0)) -> 0.02
A11: MA | B11: 0.07 | C11: 0.18 | D11: 0.11 | E11: 0.02
A12: MT | B12: 0.07 | C12: 0.17 | D12: 0.1 | E12: 0.02 | J12: Custo: | K12: 1000
A13: MS | B13: 0.07 | C13: 0.17 | D13: 0.1 | E13: 0.02 | J13: Cálculo:
A14: MG | B14: 0.12 | C14: 0.18 | D14: 0.06 | E14: 0.02
A15: PA | B15: 0.07 | C15: 0.17 | D15: 0.1 | E15: 0.02 | J15: ICMS Interestadual: | K15: =K12*K6 -> 120
A16: PB | B16: 0.07 | C16: 0.18 | D16: 0.11 | E16: 0.02 | J16: DIFAL: | K16: =K12*K9 -> 60 | L16: (dividido entre estado de origem e estado de destino)
A17: PR | B17: 0.12 | C17: 0.18 | D17: 0.06 | E17: 0.02 | J17: FCP: | K17: =K12*K8 -> 20
A18: PE | B18: 0.07 | C18: 0.18 | D18: 0.11 | E18: 0.02 | J18: TOTAL: | K18: =SUM(K15:K17) -> 200
A19: PI | B19: 0.07 | C19: 0.18 | D19: 0.11 | E19: 0.02
A20: RJ | B20: 0.12 | C20: 0.2 | D20: 0.08 | E20: 0.02
A21: RN | B21: 0.07 | C21: 0.18 | D21: 0.11 | E21: 0.02
A22: RO | B22: 0.07 | C22: 0.17 | D22: 0.1 | E22: 0.02
A23: RR | B23: 0.07 | C23: 0.17 | D23: 0.1 | E23: 0.02
A24: RS | B24: 0.12 | C24: 0.18 | D24: 0.06 | E24: 0.02
A25: SC | B25: 0.12 | C25: 0.17 | D25: 0.05 | E25: 0.02
A26: SP | B26: 0.12 | C26: 0.18 | D26: 0.06 | E26: 0.02
A27: SE | B27: 0.07 | C27: 0.18 | D27: 0.11 | E27: 0.02
A28: TO | B28: 0.07 | C28: 0.18 | D28: 0.11 | E28: 0.02

Sheet Tabela (hidden)
A1: Produto | B1: Descrição | C1: Fornecedor | D1: Linha | E1: Situação | F1: Preço de Venda | G1: Preço Minimo | H1: Markup PM | I1: Preço Sugestivo | J1: Markup PS
A2: 161 | B2: NANO NAILS REPARADOR UNHAS 7ML UN | C2: ATIVA BRASIL | D2: MAESTRINE | E2: ATIVO | F2: 21.5 | G2: 46.65 | H2: =G2/F2 -> 2.169767442 | I2: =ROUND(G2*1.15,1) -> 53.6 | J2: =I2/F2 -> 2.493023256
A3: 45 | B3: HIDRATANTE CORPORAL MAG 200G | C3: PASTEUR | D3: MAG | E3: ATIVO | F3: 15.74 | G3: 39.9 | H3: =G3/F3 -> 2.534942821 | I3: =ROUND(G3*1.15,1) -> 45.9 | J3: =I3/F3 -> 2.91613723
A4: 46 | B4: HIDRATANTE PARA MAOS MAG 60G | C4: PASTEUR | D4: MAG | E4: INATIVO | F4: 11 | G4: 33.9 | H4: =G4/F4 -> 3.081818182 | I4: =ROUND(G4*1.15,1) -> 39 | J4: =I4/F4 -> 3.545454545
A5: 47 | B5: HIDRATANTE PARA PES MAG 60G | C5: PASTEUR | D5: MAG | E5: ATIVO | F5: 10.43 | G5: 25.9 | H5: =G5/F5 -> 2.483221477 | I5: =ROUND(G5*1.15,1) -> 29.8 | J5: =I5/F5 -> 2.857142857
A6: 48 | B6: MANTEIGA CORPORAL MAG 210G | C6: PASTEUR | D6: MAG | E6: ATIVO | F6: 17.43 | G6: 47.9 | H6: =G6/F6 -> 2.748135399 | I6: =ROUND(G6*1.15,1) -> 55.1 | J6: =I6/F6 -> 3.161216294
A7: 57 | B7: NO RED FPS 30 - 100G UNID | C7: NATURELLE | D7: NORED | E7: ATIVO | F7: 49.74 | G7: 89.5 | H7: =G7/F7 -> 1.799356655 | I7: =ROUND(G7*1.15,1) -> 102.9 | J7: =I7/F7 -> 2.068757539
A8: 54 | B8: NO RED FPS 40 - 60G UNID. | C8: BOTANIK KOSMETICS | D8: NORED | E8: ATIVO | F8: 51.52 | G8: 95.9 | H8: =G8/F8 -> 1.861413043 | I8: =ROUND(G8*1.15,1) -> 110.3 | J8: =I8/F8 -> 2.140916149
A9: 55 | B9: NO RED FPS 50 C/COR 60G UNID. | C9: BOTANIK KOSMETICS | D9: NORED | E9: ATIVO | F9: 61.78 | G9: 108.5 | H9: =G9/F9 -> 1.75623179 | I9: =ROUND(G9*1.15,1) -> 124.8 | J9: =I9/F9 -> 2.02007122
A10: 56 | B10: NO RED LOCAO AUTOBRONZEADORA 120G | C10: KILT DISTRIBUIDORA | D10: NORED | E10: ATIVO | F10: 13.83 | G10: 34.9 | H10: =G10/F10 -> 2.523499638 | I10: =ROUND(G10*1.15,1) -> 40.1 | J10: =I10/F10 -> 2.899493854
A11: 1 | B11: AGARICUSOL 300MG 120 CAPS | C11: AD OCEANUM | D11: PURIS | E11: INATIVO | F11: 46.51 | G11: 81.4 | H11: =G11/F11 -> 1.750161256 | I11: =ROUND(G11*1.15,1) -> 93.6 | J11: =I11/F11 -> 2.012470436
A12: 8 | B12: BCAA 500MG 120 CAPS | C12: AD OCEANUM | D12: PURIS | E12: INATIVO | F12: 45.87 | G12: 80.3 | H12: =G12/F12 -> 1.75059952 | I12: =ROUND(G12*1.15,1) -> 92.3 | J12: =I12/F12 -> 2.012208415
A13: 9 | B13: BERINJELA 450MG 120 CAPS | C13: AD OCEANUM | D13: PURIS | E13: INATIVO | F13: 26.21 | G13: 47.4 | H13: =G13/F13 -> 1.80847005 | I13: =ROUND(G13*1.15,1) -> 54.5 | J13: =I13/F13 -> 2.079359023
A14: 10 | B14: BETACAROTENO 400MG 60 CAPS | C14: AD OCEANUM | D14: PURIS | E14: INATIVO | F14: 22.97 | G14: 40.2 | H14: =G14/F14 -> 1.750108838 | I14: =ROUND(G14*1.15,1) -> 46.2 | J14: =I14/F14 -> 2.011319112
A15: 58 | B15: BIO OMEGA 3 (18/12) 120 CAPS | C15: VITAFOR | D15: PURIS | E15: ATIVO | F15: 59.18 | G15: 98.9 | H15: =G15/F15 -> 1.671172693 | I15: =ROUND(G15*1.15,1) -> 113.7 | J15: =I15/F15 -> 1.921257181
A16: 11 | B16: CALCIO ENRIQUECIDO 700MG (CA+VIT. D+MG+ZN) 60 CAPS | C16: AD OCEANUM | D16: PURIS | E16: INATIVO | F16: 19.36 | G16: 36.4 | H16: =G16/F16 -> 1.880165289 | I16: =ROUND(G16*1.15,1) -> 41.9 | J16: =I16/F16 -> 2.164256198
A17: 12 | B17: CARTILAGEM DE TUBARAO 120 CAPS | C17: AD OCEANUM | D17: PURIS | E17: INATIVO | F17: 23.39 | G17: 43.3 | H17: =G17/F17 -> 1.851218469 | I17: =ROUND(G17*1.15,1) -> 49.8 | J17: =I17/F17 -> 2.129115006
A18: 13 | B18: CLORELLA 300MG 120 CAPS | C18: AD OCEANUM | D18: PURIS | E18: INATIVO | F18: 33.58 | G18: 58.75 | H18: =G18/F18 -> 1.749553306 | I18: =ROUND(G18*1.15,1) -> 67.6 | J18: =I18/F18 -> 2.013103038
A19: 14 | B19: CLORELLA 300MG 60 CAPS | C19: AD OCEANUM | D19: PURIS | E19: INATIVO | F19: 21.43 | G19: 40.5 | H19: =G19/F19 -> 1.889874008 | I19: =ROUND(G19*1.15,1) -> 46.6 | J19: =I19/F19 -> 2.174521699
A20: 63 | B20: COENZIMA Q10 100MG 60 CAPS | C20: VITAFOR | D20: PURIS | E20: ATIVO | F20: 86.76 | G20: 145 | H20: =G20/F20 -> 1.671277086 | I20: =ROUND(G20*1.15,1) -> 166.8 | J20: =I20/F20 -> 1.922544952
A21: 142 | B21: COLAG VERISOL GELATINA 30 GOMAS FR VERM. 240G | C21: BASECOL MIX | D21: PURIS | E21: ATIVO | F21: 88.91 | G21: 142.5 | H21: =G21/F21 -> 1.602744348 | I21: =ROUND(G21*1.15,1) -> 163.9 | J21: =I21/F21 -> 1.843437184
A22: 159 | B22: COLAG VERISOL PECTINA 30 GOMAS FR VERM. 216G UN | C22: BASECOL MIX | D22: PURIS | E22: ATIVO | F22: 84.9 | G22: 119.9 | H22: =G22/F22 -> 1.412249706 | I22: =ROUND(G22*1.15,1) -> 137.9 | J22: =I22/F22 -> 1.62426384
A23: 15 | B23: COLAGENO 500MG 60 CAPS | C23: AD OCEANUM | D23: PURIS | E23: INATIVO | F23: 19.96 | G23: 41.5 | H23: =G23/F23 -> 2.079158317 | I23: =ROUND(G23*1.15,1) -> 47.7 | J23: =I23/F23 -> 2.389779559
A24: 62 | B24: COLAGENO POTE NEUTRO 360G | C24: VITAFOR | D24: PURIS | E24: ATIVO | F24: 66.55 | G24: 111.2 | H24: =G24/F24 -> 1.670924117 | I24: =ROUND(G24*1.15,1) -> 127.9 | J24: =I24/F24 -> 1.921863261
A25: 59 | B25: COLAGENO SACHE 12G - ABACAXI | C25: VITAFOR | D25: PURIS | E25: ATIVO | F25: 73.31 | G25: 124.9 | H25: =G25/F25 -> 1.703723912 | I25: =ROUND(G25*1.15,1) -> 143.6 | J25: =I25/F25 -> 1.958805074
A26: 60 | B26: COLAGENO SACHE 12G - LARANJA COM ACEROLA | C26: VITAFOR | D26: PURIS | E26: ATIVO | F26: 73.31 | G26: 124.9 | H26: =G26/F26 -> 1.703723912 | I26: =ROUND(G26*1.15,1) -> 143.6 | J26: =I26/F26 -> 1.958805074
A27: 77 | B27: COLAGENO TIPO II 750MG 60 CAPS | C27: VITAFOR | D27: PURIS | E27: ATIVO | F27: 76.61 | G27: 129.9 | H27: =G27/F27 -> 1.695601096 | I27: =ROUND(G27*1.15,1) -> 149.4 | J27: =I27/F27 -> 1.950137058
A28: 143 | B28: COLAGENO VERISOL PO 210G SEM SABOR | C28: BASECOL MIX | D28: PURIS | E28: ATIVO | F28: 76.99 | G28: 119.9 | H28: =G28/F28 -> 1.55734511 | I28: =ROUND(G28*1.15,1) -> 137.9 | J28: =I28/F28 -> 1.791141707
A29: 2188 | B29: CREATINA MONOHIDRATADA GEL UVA 30 GOMAS 240GR | C29: BASECOL MIX | D29: PURIS | E29: INATIVO | F29: 69.9 | G29: 119.9 | H29: =G29/F29 -> 1.715307582 | I29: =ROUND(G29*1.15,1) -> 137.9 | J29: =I29/F29 -> 1.972818312
A30: 2200 | B30: CREATINA MONOHIDRATADA PECT FR VERM GOMAS 240GR | C30: BASECOL MIX | D30: PURIS | E30: ATIVO | F30: 69.9 | G30: 119.9 | H30: =G30/F30 -> 1.715307582 | I30: =ROUND(G30*1.15,1) -> 137.9 | J30: =I30/F30 -> 1.972818312
A31: 2201 | B31: CREATINA MONOHIDRATADA PECT UVA GOMAS 240GR | C31: BASECOL MIX | D31: PURIS | E31: ATIVO | F31: 69.9 | G31: 119.9 | H31: =G31/F31 -> 1.715307582 | I31: =ROUND(G31*1.15,1) -> 137.9 | J31: =I31/F31 -> 1.972818312
A32: 68 | B32: DHA PLUS (OMEGA 3) 120 CAPS 1G | C32: VITAFOR | D32: PURIS | E32: ATIVO | F32: 103.51 | G32: 173.5 | H32: =G32/F32 -> 1.676166554 | I32: =ROUND(G32*1.15,1) -> 199.5 | J32: =I32/F32 -> 1.927350014
A33: 64 | B33: ENZYMAX SACHES 2G | C33: VITAFOR | D33: PURIS | E33: ATIVO | F33: 43.8 | G33: 104.895 | H33: =G33/F33 -> 2.394863014 | I33: =ROUND(G33*1.15,1) -> 120.6 | J33: =I33/F33 -> 2.753424658
A34: 16 | B34: GUARANA E ACAI 550MG 60 CAPS | C34: AD OCEANUM | D34: PURIS | E34: INATIVO | F34: 16.94 | G34: 33.55 | H34: =G34/F34 -> 1.980519481 | I34: =ROUND(G34*1.15,1) -> 38.6 | J34: =I34/F34 -> 2.27863046
A35: 66 | B35: LACTOBACILLUS SACHES 2G | C35: VITAFOR | D35: PURIS | E35: ATIVO | F35: 89.53 | G35: 143.745 | H35: =G35/F35 -> 1.605551212 | I35: =ROUND(G35*1.15,1) -> 165.3 | J35: =I35/F35 -> 1.8463085
A36: 18 | B36: LECITINA DE SOJA 1G 60 CAPS | C36: AD OCEANUM | D36: PURIS | E36: INATIVO | F36: 21.61 | G36: 38 | H36: =G36/F36 -> 1.758445164 | I36: =ROUND(G36*1.15,1) -> 43.7 | J36: =I36/F36 -> 2.022211939
A37: 17 | B37: LECITINA DE SOJA 500MG 60 CAPS | C37: AD OCEANUM | D37: PURIS | E37: INATIVO | F37: 17.67 | G37: 31 | H37: =G37/F37 -> 1.754385965 | I37: =ROUND(G37*1.15,1) -> 35.7 | J37: =I37/F37 -> 2.020373514
A38: 19 | B38: LICOPENO 300MG 30 CAPS | C38: AD OCEANUM | D38: PURIS | E38: INATIVO | F38: 27.83 | G38: 48.9 | H38: =G38/F38 -> 1.757096658 | I38: =ROUND(G38*1.15,1) -> 56.2 | J38: =I38/F38 -> 2.019403521
A39: 20 | B39: LUTEINA 250MG 60 CAPS | C39: AD OCEANUM | D39: PURIS | E39: INATIVO | F39: 24.55 | G39: 46.5 | H39: =G39/F39 -> 1.894093686 | I39: =ROUND(G39*1.15,1) -> 53.5 | J39: =I39/F39 -> 2.179226069
A40: 21 | B40: MAGNESIO BISGLICINATO 755MG 120 CAPS | C40: AD OCEANUM | D40: PURIS | E40: INATIVO | F40: 31.95 | G40: 55.9 | H40: =G40/F40 -> 1.749608764 | I40: =ROUND(G40*1.15,1) -> 64.3 | J40: =I40/F40 -> 2.012519562
A41: 131 | B41: MALATO DE MAGNESIO 1650MG 60 CAPS | C41: AD OCEANUM | D41: PURIS | E41: INATIVO | F41: 58.68 | G41: 94 | H41: =G41/F41 -> 1.601908657 | I41: =ROUND(G41*1.15,1) -> 108.1 | J41: =I41/F41 -> 1.842194956
A42: 149 | B42: MELATONINA 0,21MG GOTA 30ML - CX C/10 UN | C42: CROMOFLORAIS | D42: PURIS | E42: ATIVO | F42: 16.5 | G42: 28.9 | H42: =G42/F42 -> 1.751515152 | I42: =ROUND(G42*1.15,1) -> 33.2 | J42: =I42/F42 -> 2.012121212
A43: 22 | B43: OLEO DE ALHO 400MG 60 CAPS | C43: AD OCEANUM | D43: PURIS | E43: INATIVO | F43: 13.63 | G43: 29.9 | H43: =G43/F43 -> 2.193690389 | I43: =ROUND(G43*1.15,1) -> 34.4 | J43: =I43/F43 -> 2.523844461
A44: 23 | B44: OLEO DE BORRAGEM 500MG 90 CAPS | C44: AD OCEANUM | D44: PURIS | E44: INATIVO | F44: 48.77 | G44: 85.4 | H44: =G44/F44 -> 1.751076481 | I44: =ROUND(G44*1.15,1) -> 98.2 | J44: =I44/F44 -> 2.01353291
A45: 24 | B45: OLEO DE CARTAMO 1G 120 CAPS | C45: AD OCEANUM | D45: PURIS | E45: INATIVO | F45: 44.17 | G45: 97.1 | H45: =G45/F45 -> 2.198324655 | I45: =ROUND(G45*1.15,1) -> 111.7 | J45: =I45/F45 -> 2.528865746
A46: 25 | B46: OLEO DE CHIA 500MG 60 CAPS | C46: AD OCEANUM | D46: PURIS | E46: INATIVO | F46: 36.81 | G46: 64.5 | H46: =G46/F46 -> 1.752241239 | I46: =ROUND(G46*1.15,1) -> 74.2 | J46: =I46/F46 -> 2.015756588
A47: 26 | B47: OLEO DE COCO 1G PURIS 120 CAPS | C47: AD OCEANUM | D47: PURIS | E47: INATIVO | F47: 45.94 | G47: 80.6 | H47: =G47/F47 -> 1.754462342 | I47: =ROUND(G47*1.15,1) -> 92.7 | J47: =I47/F47 -> 2.017849369
A48: 27 | B48: OLEO DE COCO 1G PURIS 60 CAPS | C48: AD OCEANUM | D48: PURIS | E48: INATIVO | F48: 27.81 | G48: 57.9 | H48: =G48/F48 -> 2.081984898 | I48: =ROUND(G48*1.15,1) -> 66.6 | J48: =I48/F48 -> 2.394822006
A49: 28 | B49: OLEO DE FIGADO DE BACALHAU 250MG 60 CAPS | C49: AD OCEANUM | D49: PURIS | E49: INATIVO | F49: 25.38 | G49: 44.5 | H49: =G49/F49 -> 1.753349094 | I49: =ROUND(G49*1.15,1) -> 51.2 | J49: =I49/F49 -> 2.017336485
A50: 31 | B50: OLEO DE LINHACA 1G 60 CAPS | C50: AD OCEANUM | D50: PURIS | E50: INATIVO | F50: 23.37 | G50: 45 | H50: =G50/F50 -> 1.925545571 | I50: =ROUND(G50*1.15,1) -> 51.8 | J50: =I50/F50 -> 2.216516902
A51: 30 | B51: OLEO DE LINHACA 750MG 60 CAPS | C51: AD OCEANUM | D51: PURIS | E51: INATIVO | F51: 21.19 | G51: 37.2 | H51: =G51/F51 -> 1.755545068 | I51: =ROUND(G51*1.15,1) -> 42.8 | J51: =I51/F51 -> 2.01982067
A52: 32 | B52: OLEO DE PEIXE OMEGA 3 1G 120 CAPS | C52: AD OCEANUM | D52: PURIS | E52: INATIVO | F52: 43.57 | G52: 76.5 | H52: =G52/F52 -> 1.755795272 | I52: =ROUND(G52*1.15,1) -> 88 | J52: =I52/F52 -> 2.019738352
A53: 33 | B53: OLEO DE PEIXE OMEGA 3 500MG 120 CAPS | C53: AD OCEANUM | D53: PURIS | E53: INATIVO | F53: 27.83 | G53: 57.5 | H53: =G53/F53 -> 2.066115702 | I53: =ROUND(G53*1.15,1) -> 66.1 | J53: =I53/F53 -> 2.375134747
A54: 36 | B54: OLEO DE PRIMULA 750MG 60 CAPS | C54: AD OCEANUM | D54: PURIS | E54: INATIVO | F54: 19.3 | G54: 45 | H54: =G54/F54 -> 2.331606218 | I54: =ROUND(G54*1.15,1) -> 51.8 | J54: =I54/F54 -> 2.683937824
A55: 67 | B55: OMEGA 3 PLUS (33/22) 1G 120 CAPS | C55: VITAFOR | D55: PURIS | E55: ATIVO | F55: 82.85 | G55: 138.69 | H55: =G55/F55 -> 1.673989137 | I55: =ROUND(G55*1.15,1) -> 159.5 | J55: =I55/F55 -> 1.925165963
A56: 34 | B56: OMEGA 3 PLUS (33/22) 1G 60 CAPS | C56: AD OCEANUM | D56: PURIS | E56: INATIVO | F56: 51.71 | G56: 96.62 | H56: =G56/F56 -> 1.868497389 | I56: =ROUND(G56*1.15,1) -> 111.1 | J56: =I56/F56 -> 2.148520596
A57: 37 | B57: OMEGA 3/6/9 1G 60 CAPS | C57: SOROCAPS | D57: PURIS | E57: INATIVO | H57: =G57/F57 ->  | I57: =ROUND(G57*1.15,1) -> 0 | J57: =I57/F57 -> 
A58: 2185 | B58: OMEGAMEMO 1000MG 60 CAPS | C58: VITAFOR | D58: PURIS | E58: ATIVO | F58: 79.75 | G58: 133.5 | H58: =G58/F58 -> 1.673981191 | I58: =ROUND(G58*1.15,1) -> 153.5 | J58: =I58/F58 -> 1.92476489
A59: 69 | B59: OMEGAMEMO 1G 60 CAPS | C59: VITAFOR | D59: PURIS | E59: INATIVO | F59: 27.07 | G59: 94.395 | H59: =G59/F59 -> 3.487070558 | I59: =ROUND(G59*1.15,1) -> 108.6 | J59: =I59/F59 -> 4.011821204
A60: 38 | B60: OSTEO PUR 500MG 120 CAPS | C60: AD OCEANUM | D60: PURIS | E60: INATIVO | F60: 36.05 | G60: 65.76 | H60: =G60/F60 -> 1.824133148 | I60: =ROUND(G60*1.15,1) -> 75.6 | J60: =I60/F60 -> 2.097087379
A61: 39 | B61: QUITOSANA PECTINA E PSYLLIUM 600MG 120 CAPS | C61: AD OCEANUM | D61: PURIS | E61: INATIVO | F61: 59.2 | G61: 104.1 | H61: =G61/F61 -> 1.758445946 | I61: =ROUND(G61*1.15,1) -> 119.7 | J61: =I61/F61 -> 2.021959459
A62: 2184 | B62: RESVERATROL 60 CAPS | C62: VITAFOR | D62: PURIS | E62: ATIVO | F62: 96.96 | G62: 155.9 | H62: =G62/F62 -> 1.607879538 | I62: =ROUND(G62*1.15,1) -> 179.3 | J62: =I62/F62 -> 1.849216172
A63: 40 | B63: SELENIO E VITAMINA E 250MG 60 CAPS | C63: AD OCEANUM | D63: PURIS | E63: INATIVO | F63: 13.17 | G63: 29.9 | H63: =G63/F63 -> 2.270311314 | I63: =ROUND(G63*1.15,1) -> 34.4 | J63: =I63/F63 -> 2.611996963
A64: 41 | B64: SUPLEMENTO VITAMINICO MINERAL 450MG 60 CAPS | C64: AD OCEANUM | D64: PURIS | E64: INATIVO | F64: 21.24 | G64: 42.9 | H64: =G64/F64 -> 2.019774011 | I64: =ROUND(G64*1.15,1) -> 49.3 | J64: =I64/F64 -> 2.321092279
A65: 79 | B65: VITAMINA C 1G 60 CAPS | C65: VITAFOR | D65: PURIS | E65: ATIVO | F65: 39.98 | G65: 66.9 | H65: =G65/F65 -> 1.673336668 | I65: =ROUND(G65*1.15,1) -> 76.9 | J65: =I65/F65 -> 1.923461731
A66: 148 | B66: VITAMINA D3 (2.000UI) 10ML | C66: VITAFOR | D66: PURIS | E66: INATIVO | F66: 27.36 | G66: 67.1055 | H66: =G66/F66 -> 2.452686404 | I66: =ROUND(G66*1.15,1) -> 77.2 | J66: =I66/F66 -> 2.821637427
A67: 71 | B67: VITAMINA D3 (2.000UI) 500MG 60 CAPS | C67: VITAFOR | D67: PURIS | E67: ATIVO | F67: 43.12 | G67: 72.19 | H67: =G67/F67 -> 1.674165121 | I67: =ROUND(G67*1.15,1) -> 83 | J67: =I67/F67 -> 1.924860853
A68: 130 | B68: VITAMINA E 400UI 750MG 60 CAPS | C68: AD OCEANUM | D68: PURIS | E68: INATIVO | F68: 45.76 | G68: 80.5 | H68: =G68/F68 -> 1.759178322 | I68: =ROUND(G68*1.15,1) -> 92.6 | J68: =I68/F68 -> 2.023601399
A69: 42 | B69: VITAMINAS DO COMPLEXO B 280MG 60 CAPS | C69: AD OCEANUM | D69: PURIS | E69: INATIVO | F69: 13.1 | G69: 27.2 | H69: =G69/F69 -> 2.076335878 | I69: =ROUND(G69*1.15,1) -> 31.3 | J69: =I69/F69 -> 2.389312977
